Cogmind - Beta 13 @@@ ROGUE MODE // 2024.04.26 @ 15:34:07 Player: Florist Result: Destroyed by Y-54 Guardian with Flak Gun Performance ------------- Evolutions (3) 1500 Regions Visited (8) 1600 Robots Destroyed (142) 710 Value Destroyed (8411) 8411 Prototype IDs (0) 0 Alien Tech Used (0) 0 Bonus (4973) 4973 TOTAL SCORE: 17194 Bonus ------- High Alert Combat Kills 1914 Follower Combat Kills 691 Entered Garrisons 600 Used RIF Installer 2000 Friendly Fire -232 Cogmind --------- Core Integrity 0/700 Matter 259/300 Energy 100/100 System Corruption 6% Temperature Cool (6) Movement Treading (320) Ox2 Location -7/Garrison Parts ------- > --- POWER (1) -------- (None) > --- PROPULSION (3) --- Light Treads > --- UTILITY (5) ------ High-capacity Storage Unit Relay Coupler [NC] (33) Relay Coupler [Swarmer] (33) > --- WEAPON (4) ------- Great Maul > --- INVENTORY (20) --- Improved Deuterium Engine Compact Matter Pod (150) Authchip [R/Combat] Authchip [R/Combat] Authchip [R/Combat] Authchip [R/Combat] Authchip [R/Combat] Relay Coupler [Brawler] (38) Relay Coupler [Demolisher] (17) Mini Drone Bay (3/3) Mini Drone Bay (2/3) Peak State ------------ > --- POWER ------------ (None) > --- PROPULSION ------- Advanced Treads Improved Heavy Treads > --- UTILITY ---------- High-capacity Storage Unit Relay Coupler [NC] Relay Coupler [Grunt] Relay Coupler [Sentry] Relay Coupler [Behemoth] > --- WEAPON ----------- Mace Carbide Saw Carbide Saw Carbide Saw > --- INVENTORY -------- Improved Heavy Treads Compact Matter Pod Authchip [R/Combat] Authchip [R/Combat] Authchip [R/Combat] Authchip [R/Combat] Authchip [R/Combat] Relay Coupler [Swarmer] Relay Coupler [Brawler] Relay Coupler [Demolisher] Long-range Tractor Beam Long-range Tractor Beam Mini Drone Bay Mini Drone Bay Plasma Cannon Plasma Cannon [Rating: 56] Favorites ----------- Power Nuclear Core Engine Reinforced Deuterium Engine Power Core Nuclear Core Propulsion Light Treads Treads Light Treads Leg Aluminum Leg Utility High-capacity Storage Unit Device Mini Drone Bay Storage High-capacity Storage Unit Processor Target Analyzer Hackware Relay Coupler [NC] Weapon Improved Light Cannon Energy Gun Particle Gun Energy Cannon Plasma Cannon Ballistic Gun Autogun Ballistic Cannon Improved Light Cannon Special Weapon Remote Datajack Impact Weapon Mace Slashing Weapon Mining Claw Piercing Weapon Lance Build | -11 -10 -9 -8 -8 -8 -8 -7 -7 ------- Run | Yrd Mat Mat Mat Gar Mat Gar Fac Gar Slots Evolved 6 | . . 2 2 . . . 2 . Power . | . . . . . . . . . Propulsion 1 | . . . 1 . . . . . Utility 3 | . . . 1 . . . 2 . Weapon 2 | . . 2 . . . . . . Parts Attached 130 | 5 7 14 10 12 5 38 12 27 Power 7 | . . . 1 1 . 2 1 2 Engine 3 | . . . 1 . . . 1 1 Core 4 | . . . . 1 . 2 . 1 Reactor . | . . . . . . . . . Propulsion 28 | 2 2 4 4 2 . 6 4 4 Treads 26 | 2 . 4 4 2 . 6 4 4 Leg 2 | . 2 . . . . . . . Wheel . | . . . . . . . . . Hover . | . . . . . . . . . Flight . | . . . . . . . . . Utility 24 | 1 2 1 2 . 3 8 2 5 Device 4 | . . . . . 1 2 1 . Storage 3 | 1 2 . . . . . . . Processor 3 | . . 1 2 . . . . . Hackware 14 | . . . . . 2 6 1 5 Protection . | . . . . . . . . . Artifact . | . . . . . . . . . Weapon 71 | 2 3 9 3 9 2 22 5 16 Energy Gun 3 | 1 . . . . . 2 . . Energy Cannon 2 | . . . . . . . . 2 Ballistic Gun 17 | 1 3 5 2 . . . . 6 Ballistic Cannon 19 | . . 4 1 7 1 6 . . Launcher . | . . . . . . . . . Special Weapon 12 | . . . . 1 1 8 2 . Impact Weapon 6 | . . . . . . . 1 5 Slashing Weapon 4 | . . . . . . . 1 3 Piercing Weapon 8 | . . . . 1 . 6 1 . Special Melee Weapon . | . . . . . . . . . Unidentified Prototypes . | . . . . . . . . . Corrupted Parts 1 | . . . . 1 . . . . System Corruption 1 | . . . . 1 . . . . Parts Lost 30 | . . . 1 1 . 3 9 16 Power 5 | . . . . . . 1 1 3 Propulsion 7 | . . . . . . 1 3 3 Utility 5 | . . . 1 . . . 1 3 Weapon 13 | . . . . 1 . 1 4 7 Highest Loss Streak 9 | . . . 1 1 . 1 9 9 To Critical Strikes 1 | . . . . . . . . 1 Average Slot Usage (%) 83 | . 70 87 94 81 84 92 70 78 Core 2 | . . . . . 9 8 3 3 Treads 20 | . 15 18 27 18 18 25 21 14 Leg 1 | . 12 3 . . . . . . Storage 9 | . 14 11 9 9 9 9 7 7 Processor 5 | . . 10 17 18 2 . . . Hackware 8 | . . . . . 9 16 10 23 Energy Gun 1 | . . . . . . 4 6 . Energy Cannon 1 | . . . . . . . . 9 Ballistic Gun 10 | . 27 19 5 16 . . . 4 Ballistic Cannon 14 | . . 24 30 15 27 22 3 . Impact Weapon 1 | . . . . . . . 3 5 Piercing Weapon 1 | . . . . 3 . 3 4 2 Naked Turns . | . . . . . . . . . Heaviest Build 72 | 8 46 56 61 61 66 65 62 72 Greatest Support 97 | 40 40 40 60 90 90 90 62 97 Greatest Overweight (x) 14 | . 2 2 1 . . 1 14 2 Average Overweight (x) . | . 1 1 . . . . . . Largest Inventory Capacity 20 | 8 20 20 20 20 20 20 20 20 Average Capacity 19 | 7 18 20 20 20 20 20 20 20 Most Carried 20 | 3 9 20 19 20 20 20 20 20 Average Carried 14 | 1 6 14 17 18 17 15 18 15 Final Capacity 20 | 8 20 20 20 20 20 20 20 20 Final Carried 20 | 2 7 20 17 20 16 20 20 11 Class Distribution -------------------- 43% | Gunner 19% | Mutant 14% | Bothacker-Gunner 9% | Scavenger-Gunner 4% | Commander-Gunner 4% | Scavenger-Mutant 3% | Bothacker-Mutant Dominant Class ---------------- Mutant | -10/Materials Gunner | -9/Materials Gunner | -8/Materials Gunner | -8/Garrison Gunner | -8/Materials Bothacker-Gunner | -8/Garrison Scavenger-Mutant | -7/Factory Mutant | -7/Garrison Resources | -11 -10 -9 -8 -8 -8 -8 -7 -7 ----------- Run | Yrd Mat Mat Mat Gar Mat Gar Fac Gar Matter Collected 5218 | 206 466 1023 746 550 248 1182 176 621 Remotely . | . . . . . . . . . Salvage Created 5467 | . 502 1055 842 672 149 266 436 1545 Parts 258 | . 30 77 45 31 6 11 14 44 Haulers Intercepted 7 | . 2 4 1 . . . . . Recyclers Shooed . | . . . . . . . . . Parts Field Recycled . | . . . . . . . . . Retrieved Matter . | . . . . . . . . . Parts Self-Destructed . | . . . . . . . . . Prevented . | . . . . . . . . . Kills | -11 -10 -9 -8 -8 -8 -8 -7 -7 ------- Run | Yrd Mat Mat Mat Gar Mat Gar Fac Gar Combat Hostiles Destroyed 117 | . 10 25 22 16 4 13 10 17 Melee 19 | . . . . 4 . 2 8 5 Guns 38 | . 10 17 2 5 . . 2 2 Cannons 59 | . . 8 20 7 4 10 . 10 AOE 1 | . . . . . . 1 . . Classes Destroyed 12 | . 5 3 1 1 . . 1 1 Worker 5 | . 1 . 4 . . . . . Builder 1 | . . 1 . . . . . . Hauler 7 | . 2 4 1 . . . . . Operator 1 | . . 1 . . . . . . Watcher 10 | . 3 5 2 . . . . . Swarmer 24 | . 3 7 6 . . 3 1 4 Grunt 62 | . 7 13 9 14 3 6 7 3 Brawler 1 | . . . . . . . 1 . Sentry 16 | . . 5 6 . 1 1 . 3 Hunter 5 | . . . 1 . . 1 . 3 Programmer 8 | . . . . 2 . 3 1 2 Savage 1 | . . . . . . . . 1 Infiltrator 1 | . . . . . . . . 1 Best Kill Streak 7 | . 3 7 5 3 2 2 4 3 Combat Bots Only 7 | . 3 7 5 3 2 2 4 3 Max Kills in Single Turn 2 | . 1 2 2 1 1 2 1 1 Gunslinging . | . . . . . . . . . Exploded 1 | . . . . . . 1 . . Melee 1 | . . . . 1 . 1 1 1 Uniques/NPCs Destroyed . | . . . . . . . . . Combat | -11 -10 -9 -8 -8 -8 -8 -7 -7 -------- Run | Yrd Mat Mat Mat Gar Mat Gar Fac Gar Hostile Shots Fired 889 | . 55 79 63 71 6 101 128 386 Missed 254 | . 11 20 10 24 2 29 30 128 Damage Taken 7933 | . 458 650 648 845 67 1073 1541 2651 Core 1111 | . 63 104 78 79 18 65 283 421 Absorbed by Shields 4 | . . . . . . 4 . . Core Remaining (%) 76 | 100 74 74 . . . 56 . . Volleys Fired 319 | . 42 54 37 39 12 71 25 39 Largest 4 | . 2 4 4 4 3 4 3 4 Hottest 211 | . 46 156 156 126 122 161 159 211 Shots Fired 878 | . 84 216 143 122 29 149 38 97 Gun 377 | . 84 131 30 65 . 7 18 42 Cannon 465 | . . 85 113 57 26 118 11 55 Launcher . | . . . . . . . . . Special 36 | . . . . . 3 24 9 . Kinetic 762 | . 84 216 143 122 26 118 11 42 Thermal 78 | . . . . . . 7 16 55 Explosive . | . . . . . . . . . Electromagnetic 2 | . . . . . . . 2 . Robot Hit Streak 18 | . 13 11 18 18 17 11 6 11 Robot Miss Streak 9 | . 5 3 4 4 2 4 3 9 Penetration Max . | . . . . . . . . . Secondary Targets 2 | . 1 1 . . . . . . Max Gunslinging Chain 1 | . 1 1 . . . . . . Shots Hit Robots 573 | . 52 114 81 78 21 74 56 97 Core Hits 251 | . 25 48 46 26 6 25 19 56 Critical Kills 3 | . . 2 1 . . . . . Critical Parts Destroyed 5 | . . 2 . . . . 3 . Critical Strikes 34 | . . 8 4 5 3 . 6 8 Burn 2 | . . . . . . . 2 . Destroy 7 | . . 5 2 . . . . . Blast 12 | . . 3 2 4 3 . . . Smash 4 | . . . . . . . 3 1 Sever 7 | . . . . . . . . 7 Impale 2 | . . . . 1 . . 1 . Melee Attacks 192 | . . . . 19 . 23 53 97 Impact 57 | . . . . . . . 21 36 Slashing 37 | . . . . . . . 7 30 Piercing 98 | . . . . 19 . 23 25 31 Sneak Attacks 12 | . . . . . . 1 . 11 Combat Hostiles 1 | . . . . . . . . 1 Follow-up Attacks 15 | . . . . . . . 4 11 Damage Inflicted 12317 | . 805 1960 1786 1639 428 1412 1337 2950 Guns 3825 | . 805 1211 339 825 . 90 202 353 Cannons 5022 | . . 749 1372 621 428 986 125 741 Explosions 189 | . . . 75 . . 114 . . Melee 3281 | . . . . 193 . 222 1010 1856 Ramming . | . . . . . . . . . Kinetic 7814 | . 805 1960 1711 1446 428 986 125 353 Thermal 1071 | . . . 75 . . 90 165 741 Explosive 114 | . . . . . . 114 . . Electromagnetic 37 | . . . . . . . 37 . Impact 618 | . . . . . . . 398 220 Slashing 805 | . . . . . . . 72 733 Piercing 1858 | . . . . 193 . 222 540 903 Highest Corruption 6 | . 2 1 . 2 2 2 2 6 Average Corruption 1 | . 2 1 . 1 2 2 1 2 Corruption Purged . | . . . . . . . . . Corruption Blocked 17 | . . . . 17 . . . . Effects 113 | . 6 4 . 6 5 52 6 34 Message Errors 17 | . 2 . . . . 5 1 9 Matter Fused 37 | . 2 2 . 1 3 20 3 6 Heat Flow Errors 13 | . . 1 . . . 6 1 5 Energy Discharges 14 | . 1 . . 1 . 6 . 6 Parts Fused 2 | . . . . . . 1 . 1 Data Loss (minor) 12 | . . 1 . 1 1 4 1 4 Data Loss (major) 4 | . . . . 1 . 3 . . Misfires 7 | . . . . 1 . 5 . 1 Alerts 4 | . 1 . . 1 . . . 2 Weapon Failures 3 | . . . . . 1 2 . . Overload Shots . | . . . . . . . . . Overflow Damage 306 | . . 16 37 22 . 38 172 21 Projectiles 62 | . . 16 2 22 . 1 . 21 Explosions 72 | . . . 35 . . 37 . . Melee 172 | . . . . . . . 172 . Knockbacks 48 | . . 7 22 4 3 10 2 . Impact 1 | . . . . . . . 1 . Kinetic 47 | . . 7 22 4 3 10 1 . Secondary . | . . . . . . . . . Self-Inflicted Damage 215 | . . . . 106 . 109 . . Shots 2 | . . . . 1 . 1 . . Rammed . | . . . . . . . . . Targets Rammed . | . . . . . . . . . Kicked . | . . . . . . . . . Crushed . | . . . . . . . . . Highest Temperature 701 | . 25 293 328 197 147 443 342 701 Average Temperature 111 | . 8 62 100 56 50 120 132 193 Received Heat Transfer 2565 | . 177 276 225 318 27 315 663 564 Effects 34 | . . . 7 . . 4 . 23 Shutdowns 5 | . . . . . . 2 . 3 Energy Bleed 3 | . . . 1 . . 1 . 1 Interference 9 | . . . 6 . . . . 3 Matter Decay 5 | . . . . . . 1 . 4 Short Circuit 1 | . . . . . . . . 1 Damage (minor) 3 | . . . . . . . . 3 Damage (major) 7 | . . . . . . . . 7 Damage (core) 1 | . . . . . . . . 1 Siege Activations 1 | . . . . . . . . 1 Total Turns 3 | . . . . . . . . 3 Longest Duration 3 | . . . . . . . . 3 Robots Corrupted . | . . . . . . . . . Combat Hostiles . | . . . . . . . . . Parts Fried 1 | . . . . . . . . 1 Impact Corruptions 5 | . . . . . . . 5 . Robots Melted . | . . . . . . . . . Combat Hostiles . | . . . . . . . . . Parts Melted 4 | . . . . . . . 1 3 Heat Transferred 2037 | . . . 50 . . 185 555 1247 Parts Sabotaged 3 | . . . . . . 3 . . Parts Stolen . | . . . . . . . . . Parts Stripped . | . . . . . . . . . Power Chain Reactions . | . . . . . . . . . Alert | -11 -10 -9 -8 -8 -8 -8 -7 -7 ------- Run | Yrd Mat Mat Mat Gar Mat Gar Fac Gar Peak Influence 2966 | . 183 376 657 1425 826 2966 1583 2043 Initial 1556 | . . 2 144 395 694 416 1556 905 Average 880 | . 37 205 358 910 718 1522 1411 1319 Maximum Alert Level 5 | . . 1 2 4 3 5 4 5 Low Security (%) 21 | 100 100 44 13 . . . . . Level 1 13 | . . 55 54 1 . . . . Level 2 14 | . . . 32 35 53 21 . . Level 3 16 | . . . . 24 46 26 . 39 Level 4 21 | . . . . 38 . 9 100 38 Level 5 13 | . . . . . . 42 . 22 High Security . | . . . . . . . . . Max Security . | . . . . . . . . . Squads Dispatched 19 | . 1 6 3 . 2 . 7 . Investigation 6 | . 1 2 1 . 1 . 1 . Extermination 1 | . . . . . . . 1 . Reinforcement 9 | . . 4 2 . 1 . 2 . Assault 3 | . . . . . . . 3 . Garrison . | . . . . . . . . . Intercept . | . . . . . . . . . Searches Triggered . | . . . . . . . . . Construction Impeded . | . . . . . . . . . Haulers Reinforced . | . . . . . . . . . Active Scanning Responses . | . . . . . . . . . Cargo Convoy Interrupts . | . . . . . . . . . Stealth | -11 -10 -9 -8 -8 -8 -8 -7 -7 --------- Run | Yrd Mat Mat Mat Gar Mat Gar Fac Gar Distress Signals 9 | . 1 3 3 . 1 1 . . Communications Jammed . | . . . . . . . . . Distress Signals . | . . . . . . . . . Times Spotted 233 | . 17 38 37 25 12 48 28 28 Peak Tracking Total 8 | . 4 5 5 4 4 5 8 5 Tactical Retreats 25 | . 1 4 2 1 . 6 5 6 Traps | -11 -10 -9 -8 -8 -8 -8 -7 -7 ------- Run | Yrd Mat Mat Mat Gar Mat Gar Fac Gar Traps Triggered 7 | . 1 2 . 1 . 3 . . Indirectly . | . . . . . . . . . Trap Hack Attempts . | . . . . . . . . . Triggered . | . . . . . . . . . Disarmed . | . . . . . . . . . Reprogrammed . | . . . . . . . . . Reused 4 | . . . . . . . . 4 Traps Extracted . | . . . . . . . . . Installed 4 | . . . . . . . . 4 Triggered 4 | . . . . . . . . 4 Most Traps Carried 4 | . . . . . . . . 4 Machines | -11 -10 -9 -8 -8 -8 -8 -7 -7 ---------- Run | Yrd Mat Mat Mat Gar Mat Gar Fac Gar Machines Disabled 35 | . 2 1 4 7 2 12 . 7 Max in Single Turn 2 | . 1 1 2 2 1 2 . 1 Garrison Relay 15 | . . . . 5 . 7 . 3 Phase Generator 2 | . . . . 1 . 1 . . Machines Repaired . | . . . . . . . . . Machines Dismantled . | . . . . . . . . . Machines Sabotaged . | . . . . . . . . . Overloaded Fab Kills . | . . . . . . . . . Hacking | -11 -10 -9 -8 -8 -8 -8 -7 -7 --------- Run | Yrd Mat Mat Mat Gar Mat Gar Fac Gar Machines Accessed 30 | . 7 4 4 2 1 3 6 3 Terminals 26 | . 7 4 3 2 . 3 4 3 Fabricators 1 | . . . . . . . 1 . Repair Stations . | . . . . . . . . . Recycling Units . | . . . . . . . . . Scanalyzers . | . . . . . . . . . Garrison Access 3 | . . . 1 . 1 . 1 . Total Hacks 69 | . 16 12 11 5 2 5 12 6 Successful 34 | . 10 7 4 1 2 2 5 3 Failed 35 | . 6 5 7 4 . 3 7 3 Catastrophic 7 | . . 3 . 2 . . 2 . Database Lockouts . | . . . . . . . . . Manual 41 | . 13 11 9 . . . 8 . Terminals 63 | . 16 12 9 5 . 5 10 6 Fabricators 1 | . . . . . . . 1 . Repair Stations . | . . . . . . . . . Recycling Units . | . . . . . . . . . Scanalyzers . | . . . . . . . . . Garrison Access 5 | . . . 2 . 2 . 1 . Terminal Hacks 13 | . 4 3 . 1 . 2 . 3 Open Door 2 | . . . . . . 1 . 1 Branch Access Points 2 | . 1 1 . . . . . . Emergency Access Points 4 | . 1 . . 1 . 1 . 1 Alert Level 1 | . . 1 . . . . . . Locate Traps 3 | . 2 1 . . . . . . Patrol Navigation 1 | . . . . . . . . 1 Fabricator Hacks 1 | . . . . . . . 1 . Network Status 1 | . . . . . . . 1 . Repair Station Hacks . | . . . . . . . . . Recycling Unit Hacks . | . . . . . . . . . Scanalyzer . | . . . . . . . . . Garrison Access Hacks 4 | . . . 1 . 2 . 1 . Unlock Access 3 | . . . 1 . 1 . 1 . Coupler Status 1 | . . . . . 1 . . . Unauthorized Hacks 16 | . 6 4 3 . . . 3 . Terminals 16 | . 6 4 3 . . . 3 . Botnet 16 | . 6 4 3 . . . 3 . Fabricators . | . . . . . . . . . Repair Stations . | . . . . . . . . . Recycling Units . | . . . . . . . . . Scanalyzers . | . . . . . . . . . Garrison Access . | . . . . . . . . . Data Cores Recovered . | . . . . . . . . . Used . | . . . . . . . . . Hacking Detections 19 | . 2 4 3 2 1 1 4 2 Full Trace Events 6 | . 1 2 1 1 . . 1 . Feedback Events . | . . . . . . . . . Feedback Blocked . | . . . . . . . . . Robot Schematics Acquired . | . . . . . . . . . Robots Built . | . . . . . . . . . Authchips . | . . . . . . . . . Time . | . . . . . . . . . Total Robot Build Rating . | . . . . . . . . . Part Schematics Acquired . | . . . . . . . . . Parts Built . | . . . . . . . . . Authchips . | . . . . . . . . . Time . | . . . . . . . . . Total Part Build Rating . | . . . . . . . . . Parts Repaired . | . . . . . . . . . Time . | . . . . . . . . . Parts Recycled . | . . . . . . . . . Recycled Matter . | . . . . . . . . . Retrieved Matter . | . . . . . . . . . Retrieved Components . | . . . . . . . . . Parts Scanalyzed . | . . . . . . . . . Part Schematics Acquired . | . . . . . . . . . Parts Damaged . | . . . . . . . . . Bothacking | -11 -10 -9 -8 -8 -8 -8 -7 -7 ------------ Run | Yrd Mat Mat Mat Gar Mat Gar Fac Gar Used RIF Installer 4 | . . . . 1 . 2 . 1 Threat Obfuscator 1 | . . . . . . . . 1 Robot Detection 1 | . . . . . . 1 . . Watcher Feeds 1 | . . . . . . 1 . . Robots Hacked 18 | . . . . . 3 8 7 . Non-combat 2 | . . . . . . . 2 . Combat 16 | . . . . . 3 8 5 . Robot Hacks Applied 19 | . . . . . 3 8 8 . link_fov 2 | . . . . . . . 2 . wipe_record 1 | . . . . . . . 1 . go_dormant 2 | . . . . . . 2 . . overwrite_iff 1 | . . . . . . . 1 . formatsys_high 13 | . . . . . 3 6 4 . Relay Couplers Released 58 | . . . . 20 . 27 . 11 Machine Destruction 58 | . . . . 20 . 27 . 11 Attached 14 | . . . . . 2 6 1 5 Fabnet Peak Effective % . | . . . . . . . . . Robots Rewired 20 | . . . . 3 . 16 . 1 Allies Hacked 2 | . . . . 2 . . . . Hacks Repelled . | . . . . . . . . . Allies | -11 -10 -9 -8 -8 -8 -8 -7 -7 -------- Run | Yrd Mat Mat Mat Gar Mat Gar Fac Gar Total Allies 36 | . . . . 3 3 22 5 3 Largest Group 10 | . . . . 3 2 10 2 2 Highest-Rated Group 190 | . . . . 54 26 160 32 190 Highest-Rated Ally 95 | . . . . 18 16 31 16 95 Total Orders 15 | . . . . . . 13 2 . STAY 3 | . . . . . . 3 . . ROAM 1 | . . . . . . 1 . . FOLLOW 3 | . . . . . . 3 . . EXPLORE 5 | . . . . . . 4 1 . RETURN 3 | . . . . . . 2 1 . Ally Attacks 150 | . . . . 6 6 112 12 14 Total Damage 2654 | . . . . 241 100 1352 131 830 Kills 32 | . . . . 2 2 24 . 4 Allies Corrupted . | . . . . . . . . . Allies Melted . | . . . . . . . . . Intel | -11 -10 -9 -8 -8 -8 -8 -7 -7 ------- Run | Yrd Mat Mat Mat Gar Mat Gar Fac Gar Robot Analysis Total . | . . . . . . . . . Derelict Logs Recovered . | . . . . . . . . . Drone Launches 7 | . . . . . . 3 4 . Drone Recoveries 6 | . . . . . . 3 3 . Exploration | -11 -10 -9 -8 -8 -8 -8 -7 -7 ------------- Run | Yrd Mat Mat Mat Gar Mat Gar Fac Gar Turns Passed 15867 | 83 1913 2597 1320 2083 453 3739 1369 2310 Spaces Moved 6712 | 49 766 935 549 1093 245 1622 540 913 Core 12 | 6 . . . . . . 6 . Treads 6265 | 43 460 806 549 1093 245 1622 534 913 Legs 435 | . 306 129 . . . . . . Wheels . | . . . . . . . . . Hover . | . . . . . . . . . Flight . | . . . . . . . . . Fastest Speed 50 | 50 160 240 160 160 160 160 155 152 Average Speed 194 | 146 227 242 192 160 160 194 191 173 Slowest Speed 750 | 160 260 260 240 160 160 240 750 320 Overloaded Moves . | . . . . . . . . . Propulsion Burnouts . | . . . . . . . . . Robots Hopped 3 | . . . . . . 3 . . Cave-ins Triggered . | . . . . . . . . . Exploration Rate (%) 59 | 4 95 67 43 96 20 99 21 89 Regions Visited 8 Branch Regions . Pre-discovered Areas . | . . . . . . . . . Known Exits Taken 3 | . . . 1 . 1 . 1 . Unknown Exits Taken 3 | 1 1 1 . . . . . . Scrap Searched . | . . . . . . . . . Spaces Dug 15 | . . . . . . 3 1 11 Terrain Destroyed 304 | . . 7 32 76 2 174 2 11 Melee 15 | . . . . . . 3 1 11 Projectile 16 | . . 7 6 . 2 . 1 . AOE 273 | . . . 26 76 . 171 . . Terrain Rammed . | . . . . . . . . . Walls Destroyed . | . . . . . . . . . Machines Disabled . | . . . . . . . . . Actions | -11 -10 -9 -8 -8 -8 -8 -7 -7 --------- Run | Yrd Mat Mat Mat Gar Mat Gar Fac Gar Total 8677 | 60 874 1153 725 1323 286 2071 768 1417 Wait 997 | . 41 108 111 100 19 191 137 290 Move 6700 | 48 765 934 549 1092 244 1615 540 913 Hop 3 | . . . . . . 3 . . Pick Up 127 | 7 12 29 9 13 1 27 8 21 Fast Attach . | . . . . . . . . . Attach 104 | 5 5 14 7 10 4 27 10 22 Detach 17 | . . 1 . 1 . 11 2 2 Swap 26 | . 2 . 3 2 1 11 2 5 Drop 76 | . 7 13 9 9 5 15 . 18 Fire 319 | . 42 54 37 39 12 71 25 39 Melee 167 | . . . . 19 . 23 44 81 Ram . | . . . . . . . . . Kick . | . . . . . . . . . Crush . | . . . . . . . . . Escape Stasis . | . . . . . . . . . Rewire 137 | . . . . 38 . 77 . 22 Trap 4 | . . . . . . . . 4 Miscellaneous . | . . . . . . . . . Route ------- -11/Scrapyard -10/Materials (discovered 5 exits: *Mat x3 / *Min x2) -9/Materials (discovered 2 exits: *Mat / *Min) -8/Materials (discovered 2 exits: *Fac / Gar) -8/Garrison (discovered 3 exits: *Mat x3) -8/Materials -8/Garrison (discovered 3 exits: *Fac x3) -7/Factory -7/Garrison (discovered 3 exits: [*Fac x3]) History --------- Turn | Location | Event 16 | -11/Scrapyard | Discovered new exit (range 14) 84 | -11/Scrapyard | Entered Materials 304 | -10/Materials | Build established: Mutant 417 | -10/Materials | Discovered new exit (range 15) 700 | -10/Materials | Discovered new exit (range 15) 987 | -10/Materials | Discovered new exit (range 14) 1157 | -10/Materials | Identified exit to Mines 1243 | -10/Materials | Discovered new exit (range 15) 1997 | -10/Materials | Entered another Materials area 1997 | -9/Materials | Evolved 2 slots: Weapon x2 2295 | -9/Materials | Build established: Gunner 3148 | -9/Materials | Destroyed 7 combat bots 3461 | -9/Materials | Discovered new exit (range 14) 3466 | -9/Materials | Identified exit to Mines 4594 | -9/Materials | Entered another Materials area 4594 | -8/Materials | Evolved 2 slots: Propulsion x1, Utility x1 5450 | -8/Materials | Discovered new exit (range 15) 5896 | -8/Materials | Build established: Scavenger-Gunner 5914 | -8/Materials | Identified exit to Garrison 5914 | -8/Materials | Entered Garrison 5914 | -8/Garrison | Warlord forces raided the area 5991 | -8/Garrison | Lost 4 allies 6100 | -8/Garrison | Triggered checkpoint 6114 | -8/Garrison | Triggered checkpoint 6148 | -8/Garrison | Triggered checkpoint 6218 | -8/Garrison | Triggered checkpoint 6218 | -8/Garrison | Triggered checkpoint 6240 | -8/Garrison | Garrison Relay disabled 6312 | -8/Garrison | Build established: Gunner 6327 | -8/Garrison | Warlord forces retreated 6368 | -8/Garrison | Discovered new exit (range 10) 6418 | -8/Garrison | Triggered checkpoint 6471 | -8/Garrison | Garrison Relay disabled 6685 | -8/Garrison | Garrison Relay disabled 6727 | -8/Garrison | Discovered new exit (range 11) 6728 | -8/Garrison | Triggered checkpoint 6820 | -8/Garrison | Phase Generator disabled 6868 | -8/Garrison | Triggered checkpoint 7033 | -8/Garrison | P-60 Hacker assimilated allied Rogue 3a 7166 | -8/Garrison | Garrison Relay disabled 7190 | -8/Garrison | Triggered checkpoint 7269 | -8/Garrison | Discovered new exit (range 15) 7304 | -8/Garrison | Installed Relay Interface Framework 7344 | -8/Garrison | Triggered checkpoint 7433 | -8/Garrison | Garrison Relay disabled 7997 | -8/Garrison | Entered Materials 8261 | -8/Materials | Identified exit to Garrison 8450 | -8/Materials | Entered Garrison 8555 | -8/Garrison | Expanded RIF knowledge: Robot Detection 8608 | -8/Garrison | Triggered checkpoint 8623 | -8/Garrison | Triggered checkpoint 8816 | -8/Garrison | Triggered checkpoint 8836 | -8/Garrison | Triggered checkpoint 8860 | -8/Garrison | Garrison Relay disabled 8887 | -8/Garrison | Lost 5 allies 8962 | -8/Garrison | Expanded RIF knowledge: Watcher Feeds 8991 | -8/Garrison | Phase Generator disabled 9095 | -8/Garrison | Garrison Relay disabled 9238 | -8/Garrison | Triggered checkpoint 9688 | -8/Garrison | Triggered checkpoint 9750 | -8/Garrison | Triggered checkpoint 9809 | -8/Garrison | Build established: Commander-Gunner 9815 | -8/Garrison | Discovered new exit (range 12) 10015 | -8/Garrison | Garrison Relay disabled 10231 | -8/Garrison | Garrison Relay disabled 10320 | -8/Garrison | Lost 4 allies 10362 | -8/Garrison | Triggered checkpoint 10420 | -8/Garrison | Lost 4 allies 10490 | -8/Garrison | Garrison Relay disabled 10606 | -8/Garrison | Garrison Relay disabled 10635 | -8/Garrison | Discovered new exit (range 9) 10870 | -8/Garrison | Garrison Relay disabled 10891 | -8/Garrison | Build established: Bothacker-Mutant 11171 | -8/Garrison | Discovered new exit (range 10) 11204 | -8/Garrison | Triggered checkpoint 11644 | -8/Garrison | Build established: Bothacker-Gunner 12189 | -8/Garrison | Entered Factory 12189 | -7/Factory | Evolved 2 slots: Utility x2 12589 | -7/Factory | First assault squad dispatched 12798 | -7/Factory | Lost 3 allies 12860 | -7/Factory | Lost 9 parts (1p3n1u4w) 13196 | -7/Factory | Build established: Scavenger-Mutant 13558 | -7/Factory | Identified exit to Garrison 13558 | -7/Factory | Entered Garrison 13812 | -7/Garrison | Triggered checkpoint 13827 | -7/Garrison | Garrison Relay disabled 13912 | -7/Garrison | Build established: Mutant 14177 | -7/Garrison | Spotted B-75 Beast 14290 | -7/Garrison | Triggered checkpoint 14381 | -7/Garrison | Core integrity fell below 50% 14416 | -7/Garrison | Lost 5 parts (1n2u2w) 14527 | -7/Garrison | Garrison Relay disabled 14635 | -7/Garrison | Discovered new exit (range 5) 15112 | -7/Garrison | Expanded RIF knowledge: Threat Obfuscation 15196 | -7/Garrison | Discovered new exit (range 13) 15251 | -7/Garrison | Build established: Scavenger-Gunner 15430 | -7/Garrison | Triggered checkpoint 15521 | -7/Garrison | Found embedded Infiltrators 15563 | -7/Garrison | Garrison Relay disabled 15628 | -7/Garrison | Triggered checkpoint 15765 | -7/Garrison | Discovered new exit (range 10) 15799 | -7/Garrison | P-60 Hacker assimilated allied 9F-D3Z(x) 15836 | -7/Garrison | Core integrity fell below 20% 15868 | -7/Garrison | Destroyed by Y-54 Guardian with Flak Gun Last Messages --------------- Overheating: Imp. Heavy Treads damaged (-24). Overheating: Lgt. Nuclear Core damaged (-4). Acquired 56 matter. Broken Autogun destroyed. Dropped Gamma Bomb Trap. Installed Gamma Bomb Trap. Overheating: Matter decay (-62). Imp. Heavy Treads destroyed. Plasma Cannon destroyed. Lgt. Nuclear Core destroyed. Y-54 Guardian triggered Gamma Bomb Trap. A bubble of electromagnetic force engulfs the area. Chain reaction triggered in Corrupted Unknown Power Core. Flak Gun destroyed. Y-54 Guardian IFF system glitched. Y-54 Guardian destroyed. Autogun destroyed. K>O2GLTXD0Q%IHGXE&FFT%VFVWCHT%X Acquired 57 matter. Relay Coupler [Grunt] destroyed. Map ----- +----------------------------------------------------+ | | | | | | | | | ?????????????????????????????????????????????????? | | ?????????????????????????????????????????????????? | | ?????????????????????????????????????????????????? | | ?????????????????????????????????????????????????? | | ???????????????????????" "???????????????????????? | | ?????????????????????+? +?????????????????????? | | ??????????????????????? ??????????????????????? | | ??????????????????????? "??????????????????????? | | ??????????????????????" "??????????????????????? | | ??????????????????????" "??????????????????????? | | ??????????????????????" "??????????????????????? | | ??????????????????????" "??????????????????????? | | ??????????????????????# #??????????????????????? | | ??????????????????????+ "??????????????????????? | | ??????????????????????# #??????????????????????? | | ??????????????????????#=/ ???????????????????????? | | ????????????????????###%= ???????????????????????? | | ????????????????????# #*%#???????????????????????? | | ????????????????????# *!]#####???????????????????? | | ????????????????????# # #???????????????????? | | ?????????????????##### [!;=< #???????????????????? | | ?????????????????# ==@ #???????????????????? | | ?????????????????# %Y * #???????????????????? | | ?????????????????# #####;;;##???????????????????? | | ?????????????????# #???# #???????????????????? | | ?????????????????# #???######???????????????????? | | ?????????????????# #????????????????????????????? | | ?????????????????# #????????????????????????????? | | ?????????????????# #????????????????????????????? | | ?????????????????# #????????????????????????????? | | ?????????????????# #????????????????????????????? | | ?????????????????# #????????????????????????????? | | ?????????????????# #??sss???????????????????????? | | ??????############ ###"""#####??????????????????? | | ??##### #????????????????? | | ??# " #????????????????? | | ??# ### ###"##### ###"""#####+?????????????????? | | ??# #?# #?# #???# #??gg?+???+??????????????????? | | ??# #?# ###*##??# #????????????????????????????? | | ??# #?# +%!!%#### #????????????????????????????? | | ###"### ###!%% + #????????????????????????????? | | # ## ### ##### #????????????????????????????? | | # ## ##[ #???# #????????????????????????????? | | ##[##### #????????????????????????????? | | #????????????????????????????? | | #????????????????????????????? | +----------------------------------------------------+ Best States ------------- Heat Dissipation 34 Energy Generation 16 Energy Capacity 290 Matter Stores 300 Matter Capacity 300 Sight Range 16 Terrain Scan Density 10 Evasion (%) 40 Targeting Accuracy 6 Target Analysis 5 Recoil Reduction 3 Kinecelleration 40 Relay Coupler Types 4 Relay Coupler Value 115 Authchip Count 5 Item Schematics ----------------- None Robot Schematics ------------------ None Fabricated ------------ Nothing Alien Tech Used ----------------- None Achievements -------------- None Challenges ------------ None Game ------ Seed ProtonSkeletonLattice Manual? 0 Play Time 01:44:04 Cumulative 40.3 hours Start 2024.04.26 @ 11:14:38 End 2024.04.26 @ 15:34:07 Sessions 1 Manual Loads 0 Difficulty Rogue Special Mode None Game No. 54 Rogue 54 Adventurer 0 Explorer 0 Win Type - Total 0 Types 0/0/0/0/0/0/0/0/0 Lore% 18 Gallery% 38 Achievement% 33 Wizard Run 0 Options --------- Layout 1 ASCII 0 Keyboard 0 Movement Mouse Keybinds 0 Fullscreen 1 Font 32/SmallcapsGlow Map View 77x35 Zoom Use 0% Tactical HUD 0 Map Filters NONE Filters NONE Steam 1 RUN: 3fefd578-1388-4827-af98-74166745f962